[Event "Titled Tuesday Blitz March 08 Early 2022"]
[White "Qashashvili, Alexandre"]
[Black "Fajdetic, Hrvoje"]
[WhiteFideId "13600842"]
[BlackFideId "14501945"]
[WhiteElo "2316"]
[BlackElo "2172"]
[Result "0-1"]
[Round "03"]
[TimeControl "180+1"]
[Date "2022.03.09"]
[WhiteClock "0:01:19"]
[BlackClock "0:00:05"]

1. e4 {[%clk 0:02:43]}  e6 {[%clk 0:02:59]} 2. Nc3 {[%clk 0:02:44]}  d5 {[%clk 0:02:59]} 3. exd5 {[%clk 0:02:42]}  exd5 {[%clk 0:02:59]} 4. d3 {[%clk 0:02:43]}  c6 {[%clk 0:03:00]} 5. Nf3 {[%clk 0:02:43]}  Bd6 {[%clk 0:03:00]} 6. Bg5 {[%clk 0:02:43]}  Ne7 {[%clk 0:03:01]} 7. Be2 {[%clk 0:02:42]}  f6 {[%clk 0:03:01]} 8. Bh4 {[%clk 0:02:42]}  O-O {[%clk 0:03:01]} 9. Bg3 {[%clk 0:02:42]}  Bg4 {[%clk 0:03:01]} 10. Bxd6 {[%clk 0:02:41]}  Qxd6 {[%clk 0:03:01]} 11. h3 {[%clk 0:02:41]}  Bh5 {[%clk 0:03:01]} 12. O-O {[%clk 0:02:41]}  Nd7 {[%clk 0:03:01]} 13. Nd4 {[%clk 0:02:41]}  Bxe2 {[%clk 0:02:50]} 14. Qxe2 {[%clk 0:02:41]}  Rfe8 {[%clk 0:02:24]} 15. Qe6+ {[%clk 0:02:40]}  Qxe6 {[%clk 0:02:23]} 16. Nxe6 {[%clk 0:02:41]}  Rac8 {[%clk 0:02:18]} 17. Rfe1 {[%clk 0:02:40]}  Nf5 {[%clk 0:02:16]} 18. Nf4 {[%clk 0:02:38]}  g5 {[%clk 0:02:10]} 19. Nfe2 {[%clk 0:02:36]}  Kf7 {[%clk 0:02:09]} 20. Kf1 {[%clk 0:02:33]}  h5 {[%clk 0:02:02]} 21. Ng3 {[%clk 0:02:32]}  Ng7 {[%clk 0:01:54]} 22. Rxe8 {[%clk 0:02:30]}  Rxe8 {[%clk 0:01:53]} 23. Re1 {[%clk 0:02:31]}  Rxe1+ {[%clk 0:01:45]} 24. Kxe1 {[%clk 0:02:32]}  h4 {[%clk 0:01:45]} 25. Nge2 {[%clk 0:02:31]}  Ne6 {[%clk 0:01:26]} 26. d4 {[%clk 0:02:30]}  Kg6 {[%clk 0:01:18]} 27. Kd2 {[%clk 0:02:26]}  f5 {[%clk 0:01:05]} 28. Ke3 {[%clk 0:02:26]}  Nf6 {[%clk 0:00:39]} 29. f4 {[%clk 0:02:24]}  g4 {[%clk 0:00:38]} 30. a3 {[%clk 0:02:08]}  Ne4 {[%clk 0:00:36]} 31. Nxe4 {[%clk 0:02:01]}  dxe4 {[%clk 0:00:24]} 32. hxg4 {[%clk 0:02:01]}  fxg4 {[%clk 0:00:24]} 33. Kxe4 {[%clk 0:02:01]}  Ng7 {[%clk 0:00:22]} 34. c4 {[%clk 0:01:48]}  Nf5 {[%clk 0:00:21]} 35. d5 {[%clk 0:01:46]}  h3 {[%clk 0:00:16]} 36. gxh3 {[%clk 0:01:45]}  gxh3 {[%clk 0:00:15]} 37. dxc6 {[%clk 0:01:37]}  h2 {[%clk 0:00:11]} 38. c7 {[%clk 0:01:27]}  h1=Q+ {[%clk 0:00:11]} 39. Ke5 {[%clk 0:01:25]}  Qc6 {[%clk 0:00:10]} 40. Nd4 {[%clk 0:01:23]}  Qxc7+ {[%clk 0:00:08]} 41. Kd5 {[%clk 0:01:22]}  Qd7+ {[%clk 0:00:07]} 42. Kc5 {[%clk 0:01:22]}  Qxd4+ {[%clk 0:00:07]} 43. Kb4 {[%clk 0:01:22]}  Qxb2+ {[%clk 0:00:08]} 44. Ka4 {[%clk 0:01:22]}  Nd4 {[%clk 0:00:07]} 45. f5+ {[%clk 0:01:21]}  Kxf5 {[%clk 0:00:07]} 46. c5 {[%clk 0:01:19]}  Qb5# {[%clk 0:00:05]} 0-1


[Site "https://www.chess.com"]

[Event "Titled Tuesday Blitz March 08 Early 2022"]
[White "Quirke, Jeffrey"]
[Black "Havas, Ladislav"]
[WhiteFideId "2013029"]
[BlackFideId "14501090"]
[WhiteElo "2115"]
[BlackElo "2206"]
[Result "0-1"]
[Round "03"]
[TimeControl "180+1"]
[Date "2022.03.09"]
[WhiteClock "0:00:11"]
[BlackClock "0:02:00"]

1. c4 {[%clk 0:03:00]}  Nf6 {[%clk 0:02:58]} 2. g3 {[%clk 0:03:00]}  g6 {[%clk 0:02:58]} 3. Bg2 {[%clk 0:03:00]}  Bg7 {[%clk 0:02:58]} 4. Nf3 {[%clk 0:03:00]}  O-O {[%clk 0:02:59]} 5. O-O {[%clk 0:02:59]}  d6 {[%clk 0:02:59]} 6. Nc3 {[%clk 0:02:58]}  c6 {[%clk 0:03:00]} 7. d3 {[%clk 0:02:54]}  Qa5 {[%clk 0:02:59]} 8. Rb1 {[%clk 0:02:41]}  Qh5 {[%clk 0:02:54]} 9. h4 {[%clk 0:02:10]}  h6 {[%clk 0:02:51]} 10. Bd2 {[%clk 0:02:03]}  e5 {[%clk 0:02:47]} 11. Qc2 {[%clk 0:01:56]}  Ng4 {[%clk 0:02:45]} 12. b4 {[%clk 0:01:44]}  f5 {[%clk 0:02:42]} 13. b5 {[%clk 0:01:43]}  f4 {[%clk 0:02:42]} 14. Ne4 {[%clk 0:01:29]}  d5 {[%clk 0:02:19]} 15. cxd5 {[%clk 0:01:27]}  cxd5 {[%clk 0:02:19]} 16. Qb3 {[%clk 0:01:19]}  Be6 {[%clk 0:02:15]} 17. Nc5 {[%clk 0:01:18]}  Bf7 {[%clk 0:02:13]} 18. Nxb7 {[%clk 0:00:52]}  e4 {[%clk 0:02:13]} 19. Bxf4 {[%clk 0:00:47]}  exf3 {[%clk 0:02:11]} 20. Bxf3 {[%clk 0:00:43]}  Nd7 {[%clk 0:02:10]} 21. Nd6 {[%clk 0:00:43]}  Be6 {[%clk 0:02:07]} 22. e4 {[%clk 0:00:23]}  Rxf4 {[%clk 0:02:01]} 23. gxf4 {[%clk 0:00:20]}  Qxh4 {[%clk 0:02:01]} 24. Bxg4 {[%clk 0:00:13]}  Qxg4+ {[%clk 0:02:01]} 25. Kh2 {[%clk 0:00:11]}  Qxf4+ {[%clk 0:02:00]} 0-1


[Site "https://www.chess.com"]

[Event "Titled Tuesday Blitz March 08 Early 2022"]
[White "Rangel, Daniel"]
[Black "Golsta, Madara"]
[WhiteFideId "2124475"]
[BlackFideId "11607386"]
[WhiteElo "2225"]
[BlackElo "1997"]
[Result "0-1"]
[Round "03"]
[TimeControl "180+1"]
[Date "2022.03.09"]
[WhiteClock "0:00:27"]
[BlackClock "0:01:15"]

1. e4 {[%clk 0:03:00]}  c5 {[%clk 0:02:59]} 2. Nf3 {[%clk 0:02:59]}  d6 {[%clk 0:02:59]} 3. d4 {[%clk 0:02:59]}  cxd4 {[%clk 0:02:58]} 4. Nxd4 {[%clk 0:03:00]}  Nf6 {[%clk 0:02:58]} 5. Nc3 {[%clk 0:03:00]}  g6 {[%clk 0:02:57]} 6. g3 {[%clk 0:03:00]}  Bg7 {[%clk 0:02:54]} 7. Bg2 {[%clk 0:03:00]}  Nc6 {[%clk 0:02:54]} 8. O-O {[%clk 0:02:59]}  O-O {[%clk 0:02:52]} 9. h3 {[%clk 0:02:57]}  Bd7 {[%clk 0:02:45]} 10. Be3 {[%clk 0:02:53]}  Rc8 {[%clk 0:02:41]} 11. Nb3 {[%clk 0:02:50]}  Na5 {[%clk 0:02:36]} 12. Bxa7 {[%clk 0:02:41]}  Nc4 {[%clk 0:02:33]} 13. Bd4 {[%clk 0:01:55]}  Nxb2 {[%clk 0:02:30]} 14. Qe2 {[%clk 0:01:55]}  Nc4 {[%clk 0:02:27]} 15. Nd5 {[%clk 0:01:52]}  Bb5 {[%clk 0:02:13]} 16. Nxf6+ {[%clk 0:01:39]}  Bxf6 {[%clk 0:02:10]} 17. Bxf6 {[%clk 0:01:38]}  exf6 {[%clk 0:02:10]} 18. Qd1 {[%clk 0:01:31]}  Na3 {[%clk 0:02:06]} 19. Nd4 {[%clk 0:01:17]}  Bxf1 {[%clk 0:02:04]} 20. Kxf1 {[%clk 0:01:17]}  Qb6 {[%clk 0:01:59]} 21. Kg1 {[%clk 0:01:13]}  Qb2 {[%clk 0:01:52]} 22. Nf3 {[%clk 0:01:04]}  Rxc2 {[%clk 0:01:44]} 23. Nh4 {[%clk 0:00:48]}  Rfc8 {[%clk 0:01:31]} 24. Kh2 {[%clk 0:00:40]}  Rxf2 {[%clk 0:01:25]} 25. Qg1 {[%clk 0:00:35]}  Rcc2 {[%clk 0:01:22]} 26. Rd1 {[%clk 0:00:32]}  Nc4 {[%clk 0:01:19]} 27. a4 {[%clk 0:00:28]}  Ne3 {[%clk 0:01:18]} 28. Rxd6 {[%clk 0:00:27]}  Rxg2+ {[%clk 0:01:15]} 0-1


[Site "https://www.chess.com"]

[Event "Titled Tuesday Blitz March 08 Early 2022"]
[White "Roebers, Jan"]
[Black "Shukhman, Anna"]
[WhiteFideId "1007815"]
[BlackFideId "54180058"]
[WhiteElo "2125"]
[BlackElo "1665"]
[Result "1/2-1/2"]
[Round "03"]
[TimeControl "180+1"]
[Date "2022.03.09"]
[WhiteClock "0:00:23"]
[BlackClock "0:00:25"]

1. e4 {[%clk 0:03:00]}  c5 {[%clk 0:02:58]} 2. d4 {[%clk 0:03:00]}  cxd4 {[%clk 0:02:58]} 3. c3 {[%clk 0:03:01]}  dxc3 {[%clk 0:02:58]} 4. Nxc3 {[%clk 0:03:01]}  Nc6 {[%clk 0:02:58]} 5. Nf3 {[%clk 0:03:01]}  d6 {[%clk 0:02:58]} 6. Bc4 {[%clk 0:03:01]}  e6 {[%clk 0:02:58]} 7. O-O {[%clk 0:03:00]}  Be7 {[%clk 0:02:58]} 8. Qe2 {[%clk 0:03:00]}  Nf6 {[%clk 0:02:57]} 9. Rd1 {[%clk 0:03:00]}  e5 {[%clk 0:02:56]} 10. h3 {[%clk 0:02:59]}  O-O {[%clk 0:02:55]} 11. Be3 {[%clk 0:02:55]}  Be6 {[%clk 0:02:46]} 12. Rac1 {[%clk 0:02:52]}  Rc8 {[%clk 0:02:39]} 13. Bb5 {[%clk 0:02:18]}  Qa5 {[%clk 0:02:25]} 14. a3 {[%clk 0:02:10]}  a6 {[%clk 0:02:19]} 15. Bd3 {[%clk 0:02:03]}  b5 {[%clk 0:02:00]} 16. Bg5 {[%clk 0:01:50]}  h6 {[%clk 0:01:57]} 17. Bxf6 {[%clk 0:01:48]}  Bxf6 {[%clk 0:01:55]} 18. Bb1 {[%clk 0:01:45]}  Bc4 {[%clk 0:01:33]} 19. Qc2 {[%clk 0:01:36]}  Nd4 {[%clk 0:01:32]} 20. Nxd4 {[%clk 0:01:34]}  exd4 {[%clk 0:01:31]} 21. Nd5 {[%clk 0:01:34]}  Bxd5 {[%clk 0:01:25]} 22. Qxc8 {[%clk 0:01:33]}  Rxc8 {[%clk 0:01:03]} 23. Rxc8+ {[%clk 0:01:31]}  Kh7 {[%clk 0:01:03]} 24. exd5+ {[%clk 0:01:31]}  g6 {[%clk 0:01:02]} 25. Rc6 {[%clk 0:01:26]}  Be5 {[%clk 0:00:58]} 26. g3 {[%clk 0:01:25]}  Qa4 {[%clk 0:00:56]} 27. Bc2 {[%clk 0:01:21]}  Qa5 {[%clk 0:00:52]} 28. f4 {[%clk 0:01:19]}  d3 {[%clk 0:00:51]} 29. fxe5 {[%clk 0:01:14]}  dxc2 {[%clk 0:00:50]} 30. Rxc2 {[%clk 0:01:14]}  Qb6+ {[%clk 0:00:40]} 31. Kh2 {[%clk 0:01:11]}  Kg7 {[%clk 0:00:33]} 32. e6 {[%clk 0:01:01]}  fxe6 {[%clk 0:00:31]} 33. dxe6 {[%clk 0:01:01]}  Kf6 {[%clk 0:00:30]} 34. Re1 {[%clk 0:00:52]}  Ke7 {[%clk 0:00:29]} 35. Kg2 {[%clk 0:00:49]}  Qd4 {[%clk 0:00:28]} 36. Rf2 {[%clk 0:00:45]}  Qd5+ {[%clk 0:00:28]} 37. Kh2 {[%clk 0:00:42]}  Qd4 {[%clk 0:00:28]} 38. Rf7+ {[%clk 0:00:41]}  Ke8 {[%clk 0:00:27]} 39. Re2 {[%clk 0:00:24]}  Qd3 {[%clk 0:00:27]} 40. Rff2 {[%clk 0:00:24]}  Ke7 {[%clk 0:00:25]} 41. Rf7+ {[%clk 0:00:23]}  Ke8 {[%clk 0:00:25]} 42. Rff2 {[%clk 0:00:23]}  Ke7 {[%clk 0:00:25]} 43. Rf7+ {[%clk 0:00:23]}  Ke8 {[%clk 0:00:25]} 1/2-1/2


[Site "https://www.chess.com"]

[Event "Titled Tuesday Blitz March 08 Early 2022"]
[White "Roman, Rodrigo"]
[Black "Romanchuk, Viktor"]
[WhiteFideId "3701220"]
[BlackFideId "14109271"]
[WhiteElo "2001"]
[BlackElo "2242"]
[Result "1-0"]
[Round "03"]
[TimeControl "180+1"]
[Date "2022.03.09"]
[WhiteClock "0:00:44"]
[BlackClock "0:01:13"]

1. e4 {[%clk 0:02:59]}  e6 {[%clk 0:02:59]} 2. d4 {[%clk 0:02:57]}  d5 {[%clk 0:02:59]} 3. exd5 {[%clk 0:02:57]}  exd5 {[%clk 0:02:59]} 4. Nf3 {[%clk 0:02:58]}  Bd6 {[%clk 0:02:58]} 5. Bd3 {[%clk 0:02:59]}  Ne7 {[%clk 0:02:58]} 6. O-O {[%clk 0:03:00]}  Nbc6 {[%clk 0:02:58]} 7. Re1 {[%clk 0:03:01]}  Bg4 {[%clk 0:02:58]} 8. c3 {[%clk 0:03:01]}  Qd7 {[%clk 0:02:57]} 9. b4 {[%clk 0:03:00]}  O-O-O {[%clk 0:02:57]} 10. a4 {[%clk 0:03:00]}  Ng6 {[%clk 0:02:56]} 11. Qc2 {[%clk 0:02:52]}  Bxf3 {[%clk 0:02:54]} 12. Bf5 {[%clk 0:02:52]}  Be4 {[%clk 0:02:50]} 13. Bxd7+ {[%clk 0:02:50]}  Rxd7 {[%clk 0:02:51]} 14. Qd1 {[%clk 0:02:49]}  Nh4 {[%clk 0:02:45]} 15. f3 {[%clk 0:02:38]}  Bg6 {[%clk 0:02:44]} 16. Nd2 {[%clk 0:02:29]}  Rdd8 {[%clk 0:02:37]} 17. Nf1 {[%clk 0:02:27]}  Rde8 {[%clk 0:02:35]} 18. Rxe8+ {[%clk 0:02:22]}  Rxe8 {[%clk 0:02:36]} 19. Be3 {[%clk 0:02:22]}  Nb8 {[%clk 0:02:29]} 20. a5 {[%clk 0:02:20]}  Nd7 {[%clk 0:02:29]} 21. b5 {[%clk 0:02:21]}  Nf5 {[%clk 0:02:27]} 22. Bf2 {[%clk 0:02:19]}  Nb8 {[%clk 0:02:24]} 23. Qd2 {[%clk 0:02:18]}  h6 {[%clk 0:02:19]} 24. Ng3 {[%clk 0:02:17]}  Ne7 {[%clk 0:02:15]} 25. Re1 {[%clk 0:02:07]}  Rd8 {[%clk 0:02:14]} 26. Be3 {[%clk 0:01:59]}  a6 {[%clk 0:02:11]} 27. bxa6 {[%clk 0:01:53]}  Nxa6 {[%clk 0:02:10]} 28. Bf4 {[%clk 0:01:53]}  Nc6 {[%clk 0:02:05]} 29. Bxd6 {[%clk 0:01:53]}  Rxd6 {[%clk 0:02:06]} 30. Re8+ {[%clk 0:01:48]}  Nd8 {[%clk 0:02:05]} 31. Qe3 {[%clk 0:01:42]}  Nb8 {[%clk 0:02:01]} 32. Qe7 {[%clk 0:01:41]}  Nc6 {[%clk 0:02:01]} 33. Qf8 {[%clk 0:01:40]}  Nxa5 {[%clk 0:02:01]} 34. f4 {[%clk 0:01:26]}  Bd3 {[%clk 0:01:46]} 35. f5 {[%clk 0:01:19]}  Bb5 {[%clk 0:01:42]} 36. Re7 {[%clk 0:01:18]}  Rf6 {[%clk 0:01:32]} 37. Qxg7 {[%clk 0:01:06]}  Ra6 {[%clk 0:01:30]} 38. Qh8 {[%clk 0:01:05]}  Nc6 {[%clk 0:01:30]} 39. Rxf7 {[%clk 0:01:00]}  Ra1+ {[%clk 0:01:29]} 40. Kf2 {[%clk 0:01:00]}  Ra2+ {[%clk 0:01:29]} 41. Kf3 {[%clk 0:01:00]}  Ba4 {[%clk 0:01:28]} 42. Kg4 {[%clk 0:00:58]}  Rxg2 {[%clk 0:01:26]} 43. Kh3 {[%clk 0:00:56]}  Rc2 {[%clk 0:01:21]} 44. Rf8 {[%clk 0:00:55]}  Rxc3 {[%clk 0:01:20]} 45. f6 {[%clk 0:00:56]}  Bb5 {[%clk 0:01:20]} 46. f7 {[%clk 0:00:56]}  Bf1+ {[%clk 0:01:20]} 47. Kh4 {[%clk 0:00:56]}  Rf3 {[%clk 0:01:15]} 48. Rxd8+ {[%clk 0:00:43]}  Nxd8 {[%clk 0:01:13]} 49. f8=Q {[%clk 0:00:43]}  Rxf8 {[%clk 0:01:13]} 50. Qxf8 {[%clk 0:00:44]} 1-0


[Site "https://www.chess.com"]

[Event "Titled Tuesday Blitz March 08 Early 2022"]
[White "Rosenberg, Evan S"]
[Black "Necula, Iulian"]
[WhiteFideId "2019299"]
[BlackFideId "1232380"]
[WhiteElo "2283"]
[BlackElo "1776"]
[Result "0-1"]
[Round "03"]
[TimeControl "180+1"]
[Date "2022.03.09"]
[WhiteClock "0:00:01"]
[BlackClock "0:01:41"]

1. Nf3 {[%clk 0:03:00]}  d6 {[%clk 0:02:59]} 2. d4 {[%clk 0:03:00]}  f5 {[%clk 0:02:59]} 3. g3 {[%clk 0:02:47]}  Nf6 {[%clk 0:02:58]} 4. d5 {[%clk 0:02:45]}  g6 {[%clk 0:02:59]} 5. Bg2 {[%clk 0:02:45]}  Bg7 {[%clk 0:02:59]} 6. c4 {[%clk 0:02:38]}  O-O {[%clk 0:03:00]} 7. h4 {[%clk 0:02:38]}  c6 {[%clk 0:03:01]} 8. h5 {[%clk 0:02:37]}  Nxh5 {[%clk 0:03:01]} 9. Rxh5 {[%clk 0:02:34]}  gxh5 {[%clk 0:03:01]} 10. Nc3 {[%clk 0:02:22]}  Qe8 {[%clk 0:03:00]} 11. Qc2 {[%clk 0:02:03]}  Na6 {[%clk 0:02:49]} 12. a3 {[%clk 0:01:59]}  Nc5 {[%clk 0:02:48]} 13. Be3 {[%clk 0:01:51]}  e5 {[%clk 0:02:43]} 14. Bxc5 {[%clk 0:01:40]}  dxc5 {[%clk 0:02:43]} 15. O-O-O {[%clk 0:01:40]}  e4 {[%clk 0:02:38]} 16. Nh4 {[%clk 0:01:33]}  Bd7 {[%clk 0:02:24]} 17. e3 {[%clk 0:01:24]}  a6 {[%clk 0:02:21]} 18. Ne2 {[%clk 0:01:19]}  b5 {[%clk 0:02:21]} 19. Nf4 {[%clk 0:01:18]}  bxc4 {[%clk 0:02:18]} 20. dxc6 {[%clk 0:01:12]}  Bxc6 {[%clk 0:02:18]} 21. Qxc4+ {[%clk 0:01:11]}  Kh8 {[%clk 0:02:18]} 22. Ne6 {[%clk 0:00:38]}  Qf7 {[%clk 0:02:07]} 23. Bf1 {[%clk 0:00:32]}  Bb5 {[%clk 0:02:06]} 24. Qd5 {[%clk 0:00:24]}  Qf6 {[%clk 0:02:05]} 25. Nxg7 {[%clk 0:00:20]}  Qxg7 {[%clk 0:02:05]} 26. Nxf5 {[%clk 0:00:18]}  Qf7 {[%clk 0:01:58]} 27. Qxf7 {[%clk 0:00:14]}  Rxf7 {[%clk 0:01:59]} 28. Nd6 {[%clk 0:00:13]}  Rxf2 {[%clk 0:01:57]} 29. Bxb5 {[%clk 0:00:11]}  axb5 {[%clk 0:01:58]} 30. Nxb5 {[%clk 0:00:11]}  Rf3 {[%clk 0:01:54]} 31. Rh1 {[%clk 0:00:07]}  Rxg3 {[%clk 0:01:51]} 32. Rxh5 {[%clk 0:00:07]}  Rxe3 {[%clk 0:01:50]} 33. Nd6 {[%clk 0:00:05]}  Kg7 {[%clk 0:01:43]} 34. Rxc5 {[%clk 0:00:02]}  Re1+ {[%clk 0:01:42]} 35. Kd2 {[%clk 0:00:01]}  Rb1 {[%clk 0:01:41]} 0-1


[Site "https://www.chess.com"]

[Event "Titled Tuesday Blitz March 08 Early 2022"]
[White "Rozhkov, Viacheslav"]
[Black "Alonso Rosell, Alvar"]
[WhiteFideId "4181484"]
[BlackFideId "2270544"]
[WhiteElo "2324"]
[BlackElo "2474"]
[Result "0-1"]
[Round "03"]
[TimeControl "180+1"]
[Date "2022.03.09"]
[WhiteClock "0:00:10"]
[BlackClock "0:02:15"]

1. e4 {[%clk 0:00:18]}  e5 {[%clk 0:02:44]} 2. Nf3 {[%clk 0:00:17]}  Nc6 {[%clk 0:02:44]} 3. d4 {[%clk 0:00:17]}  exd4 {[%clk 0:02:44]} 4. Bc4 {[%clk 0:00:18]}  Nf6 {[%clk 0:02:44]} 5. e5 {[%clk 0:00:17]}  Ne4 {[%clk 0:02:44]} 6. O-O {[%clk 0:00:15]}  d5 {[%clk 0:02:23]} 7. Bb5 {[%clk 0:00:14]}  Bc5 {[%clk 0:02:23]} 8. Bxc6+ {[%clk 0:00:14]}  bxc6 {[%clk 0:02:23]} 9. Nxd4 {[%clk 0:00:15]}  O-O {[%clk 0:02:22]} 10. Nxc6 {[%clk 0:00:13]}  Qh4 {[%clk 0:02:20]} 11. g3 {[%clk 0:00:13]}  Nxg3 {[%clk 0:02:19]} 12. hxg3 {[%clk 0:00:13]}  Qxg3+ {[%clk 0:02:19]} 13. Kh1 {[%clk 0:00:13]}  Qh3+ {[%clk 0:02:16]} 14. Kg1 {[%clk 0:00:13]}  Bg4 {[%clk 0:02:16]} 15. Qd3 {[%clk 0:00:10]}  Bf3 {[%clk 0:02:15]} 0-1


[Site "https://www.chess.com"]

[Event "Titled Tuesday Blitz March 08 Early 2022"]
[White "Sahil, Tickoo"]
[Black "Vetokhin, Ilia"]
[WhiteFideId "5019710"]
[BlackFideId "24156078"]
[WhiteElo "2099"]
[BlackElo "1897"]
[Result "0-1"]
[Round "03"]
[TimeControl "180+1"]
[Date "2022.03.09"]
[WhiteClock "0:00:02"]
[BlackClock "0:00:11"]

1. d4 {[%clk 0:03:00]}  Nf6 {[%clk 0:02:59]} 2. c4 {[%clk 0:02:58]}  g6 {[%clk 0:03:00]} 3. Nc3 {[%clk 0:02:57]}  Bg7 {[%clk 0:03:00]} 4. e4 {[%clk 0:02:57]}  d6 {[%clk 0:03:01]} 5. Nf3 {[%clk 0:02:56]}  O-O {[%clk 0:03:01]} 6. Be2 {[%clk 0:02:55]}  c5 {[%clk 0:03:02]} 7. d5 {[%clk 0:02:48]}  e6 {[%clk 0:03:02]} 8. O-O {[%clk 0:02:41]}  exd5 {[%clk 0:03:03]} 9. exd5 {[%clk 0:02:34]}  Bg4 {[%clk 0:03:03]} 10. h3 {[%clk 0:02:27]}  Bxf3 {[%clk 0:03:03]} 11. Bxf3 {[%clk 0:02:28]}  Nfd7 {[%clk 0:02:50]} 12. Re1 {[%clk 0:02:26]}  Na6 {[%clk 0:02:45]} 13. Bd2 {[%clk 0:02:14]}  Nc7 {[%clk 0:02:45]} 14. Qc2 {[%clk 0:02:10]}  a6 {[%clk 0:02:39]} 15. Rad1 {[%clk 0:02:05]}  b5 {[%clk 0:02:38]} 16. b3 {[%clk 0:02:04]}  Re8 {[%clk 0:02:34]} 17. Be2 {[%clk 0:01:49]}  Rb8 {[%clk 0:02:20]} 18. Bf1 {[%clk 0:01:45]}  b4 {[%clk 0:02:05]} 19. Ne4 {[%clk 0:01:39]}  Nf8 {[%clk 0:01:52]} 20. Bf4 {[%clk 0:01:30]}  Rb6 {[%clk 0:01:47]} 21. Qd3 {[%clk 0:01:18]}  h6 {[%clk 0:01:44]} 22. Qg3 {[%clk 0:01:05]}  Be5 {[%clk 0:01:43]} 23. Bxe5 {[%clk 0:00:56]}  Rxe5 {[%clk 0:01:42]} 24. Qf4 {[%clk 0:00:51]}  f5 {[%clk 0:01:35]} 25. Ng3 {[%clk 0:00:43]}  Qf6 {[%clk 0:01:23]} 26. Qxh6 {[%clk 0:00:33]}  Rb8 {[%clk 0:01:14]} 27. Nh5 {[%clk 0:00:20]}  Qf7 {[%clk 0:01:09]} 28. Rxe5 {[%clk 0:00:18]}  dxe5 {[%clk 0:01:10]} 29. Ng3 {[%clk 0:00:17]}  Ne8 {[%clk 0:01:02]} 30. h4 {[%clk 0:00:16]}  Nd6 {[%clk 0:00:57]} 31. h5 {[%clk 0:00:16]}  Re8 {[%clk 0:00:50]} 32. hxg6 {[%clk 0:00:16]}  Qxg6 {[%clk 0:00:51]} 33. Qxg6+ {[%clk 0:00:16]}  Nxg6 {[%clk 0:00:52]} 34. Nh5 {[%clk 0:00:15]}  Kf7 {[%clk 0:00:47]} 35. Re1 {[%clk 0:00:15]}  a5 {[%clk 0:00:46]} 36. Ng3 {[%clk 0:00:14]}  a4 {[%clk 0:00:46]} 37. Bd3 {[%clk 0:00:14]}  e4 {[%clk 0:00:46]} 38. Bc2 {[%clk 0:00:13]}  axb3 {[%clk 0:00:45]} 39. Bxb3 {[%clk 0:00:14]}  Ne5 {[%clk 0:00:31]} 40. Re3 {[%clk 0:00:09]}  f4 {[%clk 0:00:27]} 41. Rxe4 {[%clk 0:00:08]}  Nxe4 {[%clk 0:00:27]} 42. Nxe4 {[%clk 0:00:09]}  Nxc4 {[%clk 0:00:21]} 43. f3 {[%clk 0:00:04]}  Na5 {[%clk 0:00:14]} 44. Nd6+ {[%clk 0:00:04]}  Ke7 {[%clk 0:00:13]} 45. Nxe8 {[%clk 0:00:05]}  Nxb3 {[%clk 0:00:10]} 46. axb3 {[%clk 0:00:05]}  c4 {[%clk 0:00:11]} 47. Nc7 {[%clk 0:00:02]}  cxb3 {[%clk 0:00:11]} 0-1


[Site "https://www.chess.com"]

[Event "Titled Tuesday Blitz March 08 Early 2022"]
[White "Sahin, Handenur"]
[Black "Carre, Sylvain"]
[WhiteFideId "6334865"]
[BlackFideId "642118"]
[WhiteElo "2166"]
[BlackElo "2105"]
[Result "0-1"]
[Round "03"]
[TimeControl "180+1"]
[Date "2022.03.09"]
[WhiteClock "0:00:05"]
[BlackClock "0:00:07"]

1. e4 {[%clk 0:02:56]}  e5 {[%clk 0:02:58]} 2. Nf3 {[%clk 0:02:56]}  Nf6 {[%clk 0:02:57]} 3. Nxe5 {[%clk 0:02:50]}  d6 {[%clk 0:02:57]} 4. Nf3 {[%clk 0:02:49]}  Nxe4 {[%clk 0:02:56]} 5. Nc3 {[%clk 0:02:50]}  Nxc3 {[%clk 0:02:51]} 6. dxc3 {[%clk 0:02:50]}  Be7 {[%clk 0:02:46]} 7. Be3 {[%clk 0:02:47]}  Nc6 {[%clk 0:02:42]} 8. Qd2 {[%clk 0:02:46]}  a6 {[%clk 0:02:40]} 9. Bd3 {[%clk 0:02:41]}  h6 {[%clk 0:02:35]} 10. O-O-O {[%clk 0:02:40]}  Be6 {[%clk 0:02:35]} 11. Kb1 {[%clk 0:02:39]}  Qd7 {[%clk 0:02:34]} 12. Nd4 {[%clk 0:02:32]}  Ne5 {[%clk 0:02:02]} 13. Nxe6 {[%clk 0:02:25]}  fxe6 {[%clk 0:02:03]} 14. f4 {[%clk 0:02:19]}  Nxd3 {[%clk 0:02:01]} 15. Qxd3 {[%clk 0:02:20]}  O-O-O {[%clk 0:01:37]} 16. Qd4 {[%clk 0:02:15]}  Bf6 {[%clk 0:01:31]} 17. Qa7 {[%clk 0:02:13]}  Qc6 {[%clk 0:01:32]} 18. g3 {[%clk 0:02:10]}  Kd7 {[%clk 0:01:31]} 19. Bc1 {[%clk 0:01:58]}  Qb5 {[%clk 0:01:19]} 20. Qe3 {[%clk 0:01:55]}  Rhe8 {[%clk 0:01:11]} 21. Rhe1 {[%clk 0:01:50]}  Kc8 {[%clk 0:01:10]} 22. b3 {[%clk 0:01:31]}  Kb8 {[%clk 0:01:07]} 23. c4 {[%clk 0:01:24]}  Qc6 {[%clk 0:01:04]} 24. Bb2 {[%clk 0:01:23]}  Bxb2 {[%clk 0:00:59]} 25. Kxb2 {[%clk 0:01:23]}  e5 {[%clk 0:01:00]} 26. Qf2 {[%clk 0:01:20]}  e4 {[%clk 0:00:48]} 27. Re3 {[%clk 0:01:18]}  Re7 {[%clk 0:00:48]} 28. Rd4 {[%clk 0:01:13]}  Rde8 {[%clk 0:00:46]} 29. Qe2 {[%clk 0:01:13]}  b6 {[%clk 0:00:42]} 30. Rd5 {[%clk 0:00:57]}  a5 {[%clk 0:00:40]} 31. a4 {[%clk 0:00:55]}  Qd7 {[%clk 0:00:35]} 32. Qd2 {[%clk 0:00:48]}  Qc6 {[%clk 0:00:33]} 33. Qd4 {[%clk 0:00:45]}  Kb7 {[%clk 0:00:32]} 34. g4 {[%clk 0:00:41]}  Qd7 {[%clk 0:00:29]} 35. h3 {[%clk 0:00:39]}  Qe6 {[%clk 0:00:29]} 36. Qd2 {[%clk 0:00:34]}  Qf6+ {[%clk 0:00:27]} 37. Kb1 {[%clk 0:00:29]}  Qxf4 {[%clk 0:00:26]} 38. Rb5 {[%clk 0:00:27]}  Re5 {[%clk 0:00:24]} 39. c5 {[%clk 0:00:16]}  Rxc5 {[%clk 0:00:20]} 40. Rxc5 {[%clk 0:00:15]}  dxc5 {[%clk 0:00:20]} 41. Qe2 {[%clk 0:00:15]}  Re5 {[%clk 0:00:20]} 42. Kb2 {[%clk 0:00:14]}  Re7 {[%clk 0:00:20]} 43. Qe1 {[%clk 0:00:14]}  Qe5+ {[%clk 0:00:20]} 44. c3 {[%clk 0:00:13]}  c6 {[%clk 0:00:19]} 45. Re2 {[%clk 0:00:13]}  e3 {[%clk 0:00:19]} 46. Qd1 {[%clk 0:00:13]}  Kc7 {[%clk 0:00:19]} 47. Qg1 {[%clk 0:00:13]}  Qe4 {[%clk 0:00:19]} 48. Qg3+ {[%clk 0:00:12]}  Kb7 {[%clk 0:00:19]} 49. Ka3 {[%clk 0:00:12]}  b5 {[%clk 0:00:19]} 50. Qd6 {[%clk 0:00:12]}  Qe5 {[%clk 0:00:15]} 51. Qd8 {[%clk 0:00:11]}  Qc7 {[%clk 0:00:13]} 52. Qd3 {[%clk 0:00:08]}  b4+ {[%clk 0:00:13]} 53. cxb4 {[%clk 0:00:08]}  cxb4+ {[%clk 0:00:14]} 54. Ka2 {[%clk 0:00:08]}  Qe5 {[%clk 0:00:14]} 55. Qd8 {[%clk 0:00:07]}  Qc7 {[%clk 0:00:13]} 56. Qd3 {[%clk 0:00:07]}  c5 {[%clk 0:00:10]} 57. Qc4 {[%clk 0:00:06]}  Qc6 {[%clk 0:00:07]} 58. Qd3 {[%clk 0:00:04]}  Qe6 {[%clk 0:00:07]} 59. Qb5+ {[%clk 0:00:04]}  Qb6 {[%clk 0:00:06]} 60. Qd3 {[%clk 0:00:03]}  c4 {[%clk 0:00:04]} 61. Qxc4 {[%clk 0:00:03]}  Qc6 {[%clk 0:00:05]} 62. Qxc6+ {[%clk 0:00:03]}  Kxc6 {[%clk 0:00:06]} 63. Kb2 {[%clk 0:00:03]}  Kd5 {[%clk 0:00:06]} 64. Kc2 {[%clk 0:00:03]}  Kd4 {[%clk 0:00:07]} 65. Re1 {[%clk 0:00:03]}  Rc7+ {[%clk 0:00:07]} 66. Kd1 {[%clk 0:00:03]}  Kd3 {[%clk 0:00:07]} 67. Rxe3+ {[%clk 0:00:04]}  Kxe3 {[%clk 0:00:06]} 68. h4 {[%clk 0:00:04]}  g5 {[%clk 0:00:06]} 69. hxg5 {[%clk 0:00:04]}  hxg5 {[%clk 0:00:06]} 70. Ke1 {[%clk 0:00:05]}  Rc1# {[%clk 0:00:07]} 0-1


[Site "https://www.chess.com"]